Cogmind - Beta 14 @@@ ROGUE MODE // 2024.11.01 @ 12:16:27 Player: NextToZero Result: Destroyed by G-47 Trooper with Particle Gun Performance ------------- Evolutions (0) 0 Regions Visited (2) 400 Robots Destroyed (28) 140 Value Destroyed (395) 395 Prototype IDs (0) 0 Alien Tech Used (0) 0 Bonus (0) 0 TOTAL SCORE: 935 Bonus ------- None Cogmind --------- Core Integrity 0/250 Matter 208/300 Energy 125/125 System Corruption 2% Temperature Cool (11) Movement Rolling (95) Ox1 Location -10/Mines Parts ------- > --- POWER (1) -------- Light Ion Engine > --- PROPULSION (2) --- Wheel Wheel > --- UTILITY (2) ------ Large Storage Unit Seismic Detector > --- WEAPON (2) ------- Rocket Launcher Mining Claw > --- INVENTORY (15) --- Light Ion Engine Light Ion Engine Wheel Medium Matter Pod (0) Medium Matter Pod (0) Medium Matter Pod (0) Transport Network Coupler Light Armor Plating Light Armor Plating Light Armor Plating Field Recycling Unit (0) Heavy Assault Rifle Heavy Assault Rifle Heavy Assault Rifle Hammer Peak State ------------ > --- POWER ------------ Light Ion Engine > --- PROPULSION ------- Light Treads Wheel > --- UTILITY ---------- Improved Heat Sink Huge Storage Unit > --- WEAPON ----------- Hammer Hammer > --- INVENTORY -------- Light Ion Engine Flight Unit Flight Unit Flight Unit Flight Unit Heat Sink Small Storage Unit Huge Storage Unit Transport Network Coupler Field Recycling Unit Particle Gun Light Assault Rifle Light Assault Rifle Light Assault Rifle Heavy Assault Rifle Heavy Assault Rifle Heavy Assault Rifle Heavy Assault Rifle Shotgun Shotgun Shotgun [Rating: 12] Favorites ----------- Power Light Ion Engine Engine Light Ion Engine Propulsion Wheel Treads Light Treads Wheel Wheel Utility Huge Storage Unit Device Improved Heat Sink Storage Huge Storage Unit Weapon Hammer Energy Gun EM Pulse Gun Ballistic Gun Light Assault Rifle Launcher Rocket Launcher Impact Weapon Hammer Slashing Weapon Mining Claw Build | -11 -10 -10 ------- Run | Yrd Mat Min Slots Evolved . | . . . Power . | . . . Propulsion . | . . . Utility . | . . . Weapon . | . . . Parts Attached 37 | 8 27 2 Power 7 | 2 5 . Engine 7 | 2 5 . Core . | . . . Reactor . | . . . Propulsion 11 | 2 9 . Treads 1 | . 1 . Leg . | . . . Wheel 10 | 2 8 . Hover . | . . . Flight . | . . . Utility 8 | 2 5 1 Device 4 | 1 2 1 Storage 4 | 1 3 . Processor . | . . . Hackware . | . . . Protection . | . . . Artifact . | . . . Weapon 11 | 2 8 1 Energy Gun 3 | 1 2 . Energy Cannon . | . . . Ballistic Gun 3 | 1 2 . Ballistic Cannon . | . . . Launcher 1 | . . 1 Special Weapon . | . . . Impact Weapon 3 | . 3 . Slashing Weapon 1 | . 1 . Piercing Weapon . | . . . Special Melee Weapon . | . . . Unidentified Prototypes . | . . . Parts Lost 8 | . 8 . Power 1 | . 1 . Propulsion 4 | . 4 . Utility 1 | . 1 . Weapon 2 | . 2 . Highest Loss Streak 7 | . 7 . To Critical Strikes . | . . . Average Slot Usage (%) 95 | . 95 94 Engine 13 | . 13 14 Treads 7 | . 9 . Wheel 18 | . 16 28 Device 12 | . 12 8 Storage 14 | . 14 14 Energy Gun 3 | . 4 . Ballistic Gun 3 | . 3 . Impact Weapon 17 | . 18 13 Slashing Weapon 2 | . . 14 Peak Build Rating 12 | 7 12 10 Average Rating 9 | 5 9 8 On Entrance 5 | . 7 10 Naked Turns . | . . . Heaviest Build 90 | 14 90 28 Greatest Support 20 | 20 20 20 Greatest Overweight (x) 8 | . 8 1 Average Overweight (x) 3 | . 4 1 Largest Inventory Capacity 25 | 8 25 15 Average Capacity 20 | 7 21 15 Most Carried 25 | 5 25 15 Average Carried 14 | 1 15 14 Final Capacity 15 | 8 15 15 Final Carried 15 | 5 14 15 Class Distribution -------------------- 94% | Mutant 5% | Scavenger-Mutant Dominant Class ---------------- Mutant | -10/Materials Mutant | -10/Mines Resources | -11 -10 -10 ----------- Run | Yrd Mat Min Matter Collected 563 | 287 227 49 Remotely 223 | 190 33 . Salvage Created 781 | 137 593 51 Parts 47 | 8 33 6 Haulers Intercepted 2 | . 2 . Recyclers Shooed 1 | . 1 . Parts Field Recycled . | . . . Retrieved Matter . | . . . Parts Self-Destructed . | . . . Prevented . | . . . Kills | -11 -10 -10 ------- Run | Yrd Mat Min Combat Hostiles Destroyed 13 | . 12 1 Melee 5 | . 5 . Guns 6 | . 6 . AOE 1 | . . 1 Classes Destroyed 9 | 2 7 . Worker 4 | . 4 . Builder 2 | . 2 . Tunneler 4 | 2 1 1 Hauler 2 | . 2 . Recycler 1 | 1 . . Operator 1 | . 1 . Watcher 1 | . 1 . Swarmer 6 | . 6 . Grunt 7 | . 6 1 Best Kill Streak 3 | 2 3 1 Combat Bots Only 3 | . 3 1 Max Kills in Single Turn 1 | 1 1 1 Gunslinging . | . . . Exploded 1 | . . 1 Melee 1 | . 1 . Uniques/NPCs Destroyed . | . . . Combat | -11 -10 -10 -------- Run | Yrd Mat Min Hostile Shots Fired 122 | . 117 5 Missed 27 | . 26 1 Damage Taken 1169 | . 1085 84 Core 260 | . 217 43 Absorbed by Shields . | . . . Core Remaining (%) 100 | 100 . . Volleys Fired 61 | 7 49 5 Largest 2 | 2 2 1 Hottest 85 | 60 85 33 Shots Fired 87 | 14 68 5 Gun 82 | 14 68 . Cannon . | . . . Launcher 5 | . . 5 Special . | . . . Kinetic 46 | 7 39 . Thermal 1 | . 1 . Explosive 5 | . . 5 Electromagnetic 35 | 7 28 . Robot Hit Streak 18 | 3 18 2 Robot Miss Streak 3 | 1 3 2 Penetration Max . | . . . Secondary Targets . | . . . Shots Hit Robots 80 | 9 67 4 Core Hits 33 | 5 24 4 Critical Kills 1 | . 1 . Critical Parts Destroyed 3 | . 3 . Critical Strikes 4 | . 4 . Smash 4 | . 4 . Melee Attacks 29 | . 28 1 Impact 27 | . 27 . Slashing 2 | . 1 1 Piercing . | . . . Sneak Attacks 11 | . 10 1 Combat Hostiles . | . . . Follow-up Attacks 1 | . 1 . Damage Inflicted 1645 | 87 1353 205 Guns 566 | 87 479 . Cannons . | . . . Explosions 157 | . . 157 Melee 920 | . 872 48 Ramming 2 | . 2 . Kinetic 306 | 47 259 . Thermal . | . . . Explosive 157 | . . 157 Electromagnetic 260 | 40 220 . Impact 824 | . 824 . Slashing 96 | . 48 48 Piercing . | . . . Highest Corruption 2 | . 2 2 Average Corruption 1 | . 1 2 Corruption Purged . | . . . Corruption Blocked . | . . . Effects 13 | . 11 2 Message Errors 4 | . 3 1 Matter Fused 3 | . 3 . Heat Flow Errors 1 | . 1 . Energy Discharges 2 | . 2 . Data Loss (minor) 1 | . 1 . Data Loss (major) 2 | . 1 1 Overload Shots . | . . . Overflow Damage 283 | . 283 . Projectiles . | . . . Explosions . | . . . Melee 283 | . 283 . Knockbacks 3 | . 3 . Impact 3 | . 3 . Kinetic . | . . . Secondary . | . . . Self-Inflicted Damage 30 | . . 30 Shots 2 | . . 2 Rammed 2 | . 2 . Targets Rammed 2 | . 2 . Kicked . | . . . Crushed . | . . . Highest Temperature 195 | 20 195 6 Average Temperature 27 | 10 32 3 Received Heat Transfer 468 | . 435 33 Siege Activations . | . . . Robots Corrupted 8 | . 8 . Combat Hostiles 1 | . 1 . Parts Fried 15 | . 15 . Impact Corruptions 15 | . 15 . Robots Melted . | . . . Combat Hostiles . | . . . Parts Melted . | . . . Heat Transferred . | . . . Parts Sabotaged . | . . . Parts Stolen . | . . . Parts Stripped . | . . . Power Chain Reactions . | . . . Alert | -11 -10 -10 ------- Run | Yrd Mat Min Peak Influence 188 | 15 188 71 Initial 14 | . 9 14 Average 56 | 5 68 19 Maximum Alert Level . | . . . Low Security (%) 100 | 100 100 100 Level 1 . | . . . Level 2 . | . . . Level 3 . | . . . Level 4 . | . . . Level 5 . | . . . High Security . | . . . Max Security . | . . . Squads Dispatched 2 | . 2 . Investigation 1 | . 1 . Extermination . | . . . Reinforcement 1 | . 1 . Assault . | . . . Garrison . | . . . Intercept . | . . . Searches Triggered . | . . . Construction Impeded . | . . . Haulers Reinforced . | . . . Active Scanning Responses . | . . . Cargo Convoy Interrupts . | . . . Stealth | -11 -10 -10 --------- Run | Yrd Mat Min Distress Signals 1 | . 1 . Communications Jammed . | . . . Distress Signals . | . . . Times Spotted 26 | . 24 2 Peak Tracking Total 4 | . 4 2 Tactical Retreats 3 | . 3 . Traps | -11 -10 -10 ------- Run | Yrd Mat Min Traps Triggered 3 | . 3 . Indirectly . | . . . Trap Hack Attempts . | . . . Triggered . | . . . Disarmed . | . . . Reprogrammed . | . . . Reused . | . . . Traps Extracted . | . . . Installed . | . . . Triggered . | . . . Machines | -11 -10 -10 ---------- Run | Yrd Mat Min Machines Disabled . | . . . Max in Single Turn . | . . . Machines Repaired . | . . . Machines Dismantled . | . . . Machines Sabotaged . | . . . Overloaded Fab Kills . | . . . Hacking | -11 -10 -10 --------- Run | Yrd Mat Min Machines Accessed 4 | . 4 . Terminals 4 | . 4 . Fabricators . | . . . Repair Stations . | . . . Recycling Units . | . . . Scanalyzers . | . . . Garrison Access . | . . . Total Hacks 10 | . 10 . Successful 5 | . 5 . Failed 5 | . 5 . Catastrophic 2 | . 2 . Database Lockouts . | . . . Manual . | . . . Terminals 10 | . 10 . Fabricators . | . . . Repair Stations . | . . . Recycling Units . | . . . Scanalyzers . | . . . Garrison Access . | . . . Terminal Hacks 5 | . 5 . Robot Analysis 1 | . 1 . Locate Traps 1 | . 1 . Dispatch Records 1 | . 1 . Zone Layout 2 | . 2 . Fabricator Hacks . | . . . Repair Station Hacks . | . . . Recycling Unit Hacks . | . . . Scanalyzer . | . . . Garrison Access Hacks . | . . . Unauthorized Hacks . | . . . Terminals . | . . . Fabricators . | . . . Repair Stations . | . . . Recycling Units . | . . . Scanalyzers . | . . . Garrison Access . | . . . Data Cores Recovered . | . . . Used . | . . . Hacking Detections 3 | . 3 . Full Trace Events 2 | . 2 . Feedback Events . | . . . Feedback Blocked . | . . . Robot Schematics Acquired . | . . . Robots Built . | . . . Authchips . | . . . Time . | . . . Total Robot Build Rating . | . . . Part Schematics Acquired . | . . . Parts Built . | . . . Authchips . | . . . Time . | . . . Total Part Build Rating . | . . . Parts Repaired . | . . . Time . | . . . Parts Recycled . | . . . Recycled Matter . | . . . Retrieved Matter . | . . . Retrieved Components . | . . . Parts Scanalyzed . | . . . Part Schematics Acquired . | . . . Parts Damaged . | . . . Bothacking | -11 -10 -10 ------------ Run | Yrd Mat Min Used RIF Installer . | . . . Robots Hacked . | . . . Non-combat . | . . . Combat . | . . . Robot Hacks Applied . | . . . Relay Couplers Released . | . . . Fabnet Peak Effective % . | . . . Robots Rewired . | . . . Allies Hacked . | . . . Hacks Repelled . | . . . Allies | -11 -10 -10 -------- Run | Yrd Mat Min Total Allies . | . . . Largest Group . | . . . Highest-Rated Group . | . . . Highest-Rated Ally . | . . . Total Orders . | . . . Ally Attacks . | . . . Total Damage . | . . . Kills . | . . . Allies Corrupted . | . . . Allies Melted . | . . . Intel | -11 -10 -10 ------- Run | Yrd Mat Min Robot Analysis Total 1 | . 1 . Derelict Logs Recovered 1 | . . 1 Drone Launches . | . . . Drone Recoveries . | . . . Exploration | -11 -10 -10 ------------- Run | Yrd Mat Min Turns Passed 1715 | 82 1343 290 Spaces Moved 972 | 60 628 284 Core 4 | 4 . . Treads 37 | . 37 . Legs . | . . . Wheels 931 | 56 591 284 Hover . | . . . Flight . | . . . Fastest Speed 50 | 50 80 95 Average Speed 141 | 78 168 95 Slowest Speed 480 | 80 480 95 Overloaded Moves . | . . . Propulsion Burnouts . | . . . Robots Hopped . | . . . Cave-ins Triggered . | . . . Exploration Rate (%) 49 | 4 77 67 Regions Visited 2 Branch Regions 1 Pre-discovered Areas . | . . . Known Exits Taken . | . . . Unknown Exits Taken 2 | 1 1 . Scrap Searched 1 | . . 1 Spaces Dug 2 | . 2 . Terrain Destroyed 62 | . 2 60 Melee 2 | . 2 . Projectile . | . . . AOE 60 | . . 60 Terrain Rammed . | . . . Walls Destroyed . | . . . Machines Disabled . | . . . Actions | -11 -10 -10 --------- Run | Yrd Mat Min Total 1187 | 78 807 302 Wait 9 | . 9 . Move 970 | 59 627 284 Hop . | . . . Pick Up 44 | 4 35 5 Fast Attach 16 | 7 8 1 Attach 3 | . 3 . Detach . | . . . Swap 18 | 1 16 1 Drop 37 | . 32 5 Fire 61 | 7 49 5 Melee 27 | . 26 1 Ram . | . . . Kick . | . . . Crush 2 | . 2 . Escape Stasis . | . . . Rewire . | . . . Trap . | . . . Miscellaneous . | . . . Route ------- -11/Scrapyard -10/Materials (discovered 3 exits: [*Mat x2] / [*Min]) -10/Mines (discovered 1 exit: [*Mat]) History --------- Turn | Location | Event 17 | -11/Scrapyard | Discovered new exit (range 15) 83 | -11/Scrapyard | Entered Materials 121 | -10/Materials | Discovered new exit (range 13) 203 | -10/Materials | Discovered new exit (range 16) 325 | -10/Materials | Build established: Mutant 442 | -10/Materials | Core integrity fell below 50% 470 | -10/Materials | Lost 7 parts (4n1u2w) 1061 | -10/Materials | Core integrity fell below 20% 1363 | -10/Materials | Discovered new exit (range 8) 1426 | -10/Materials | Entered Mines 1511 | -10/Mines | Learned Materials security intel 1591 | -10/Mines | Discovered new exit (range 7) 1592 | -10/Mines | Received a Rocket Launcher from a helpful Derelict 1716 | -10/Mines | Destroyed by G-47 Trooper with Particle Gun Last Messages --------------- laser when you travel the depths." 01588_ HJ-M9P(g): "Pshh... whatever." 01589_ HJ-M9P(g): "Everyone knows a good old rocket launcher goes a long way." 01590_ HJ-M9P(g): "Need to get rid of a swarm? Done. Need a big hole in the wall? Done." 01591_ HJ-M9P(g): "Need a small hole in the wall? Leave that to the mining laser wimps, I say!" 01591_ EXIT=FOUND 01592_ HJ-M9P(g): "Would you like a rocket launcher? I know I would if I were you, so I'm going to lend you mine." 01592_ HJ-M9P(g) slips back into the shadows. 01594_ Dropped Seismic Detector. 01595_ Acquired Rocket Launcher. 01597_ Acquired Seismic Detector. 01622_ T-07 Excavator is excavating. 01625_ &VPR&BXB1:3 XQQ1OV:GM%5,73Q8 01661_ K-01 Serf collects debris. 01710_ G-34 Mercenary destroyed. 01715_ The unstable cave ceiling collapses. Map ----- +----------------------------------------------------+ | | | | | ????????????????????????????????? | | ????????????????????????????????? | | ????????????????????????????????? | | ????????????????????????????????? | | ????????????????????????????????? | | ????????????????????????????????? | | ????????????????????????????????? | | ????????????????????????????????? | | ???????? ??????????????????????? | | ???????? ??????????????????????? | | ???????? ??????????????????????? | | ????????g ??????????????????????? | | ????????% ?????????????###??????? | | ???????? ????????????? #??????? | | ???????? ?????###???### #??????? | | ??????## ????## #?## ##?????? | | ?????## ###?## ## ##????? | | ?????# ### #????? | | ?????# ## """ #????? | | ?????# # """ #????? | | ????## # # """ | | ????# ## ### | | ?????# #??###### #?########### | | ??????# @#????????# #???????????? | | ??????## #????????# #???????????# | | ???????# #????????# #???????????# | | ???????# #????????# #??????????## | | ???????# #?????#### ############ | | ???????# #?????# | | ???????# #?????# | | ???????# #?????# ########### | | ???????# #?????# ##????????## | | ???????# #????## ##????????# | | ???????# #????# #????????# | | ???????# #???## #????????## | | ???????# #???# ##?????????# | | ???????# ##### ##??????????# | | ???????# ##???????????## | | ???????###############?????????## | | ?????????????????## ##?????????# | | ?????????????????# #?????????# | | ????????????????## #?????????# | | ???????????????## ##????????# | | ??????????????## ##?????### | | ??????????????# ##???## | | ??????????????# ## ##??# | | ??????????????###?## #??# | | ???????????????????## #??# | +----------------------------------------------------+ Best States ------------- Heat Dissipation 39 Energy Generation 10 Energy Capacity 250 Matter Stores 300 Matter Capacity 300 Sight Range 16 Robot Scan Range 14 Terrain Scan Density 10 Evasion (%) 44 Recoil Reduction 1 Item Schematics ----------------- None Robot Schematics ------------------ None Fabricated ------------ Nothing Alien Tech Used ----------------- None Achievements -------------- None Challenges ------------ None Game ------ Seed TransmissionLinkedBallwheel Manual? 0 Play Time 00:15:42 Cumulative 28.2 hours Start 2024.11.01 @ 12:02:44 End 2024.11.01 @ 12:16:27 Sessions 1 Manual Loads 0 Difficulty Rogue Special Mode None Game No. 36 Rogue 36 Adventurer 0 Explorer 0 Win Type - Total 0 Types 0/0/0/0/0/0/0/0/0 Lore% 14 Gallery% 35 Achievement% 31 Wizard Run 0 Options --------- Layout 0 ASCII 0 Keyboard 0 Movement Mouse Keybinds 0 Fullscreen 1 Font 36/Smallcaps Map View 38x25 Zoom Use 100% Tactical HUD 1 Map Filters NONE Filters NONE Steam 1 RUN: e5953842-c81d-450b-be68-f0ab6966df1a